bitfinex-derivatives/quotes_ETHF0:USTF0_20260113
["timestamp","ask_amount","ask_price","bid_price","bid_amount"]
[1768283776475,1.08742253,3135.1,3134.2,1.08742253]
[1768283776770,0.88616709,3135.0,3134.2,1.08742253]
[1768283776969,1.08742253,3135.1,3134.2,1.08742253]
[1768283777169,0.88616707,3135.0,3134.2,1.08742253]
[1768283777373,1.08742253,3135.1,3134.2,1.08742253]
[1768283777575,0.88616049,3135.0,3134.2,1.08742253]
[1768283777774,1.08742253,3135.1,3134.2,1.08742253]
[1768283777971,0.8861603,3135.0,3134.1,0.00478118]
[1768283778178,0.88615984,3134.9,3134.1,0.00478118]
[1768283778384,1.08742253,3135.1,3134.1,0.00478118]
[1768283778583,0.88617889,3135.0,3134.1,0.00478118]
[1768283778784,1.97360142,3134.9,3134.1,0.00478118]
[1768283779086,1.08742253,3134.9,3134.1,0.00478118]
[1768283780781,1.08742253,3134.3,3133.5,2.8508909]
[1768283780981,1.08742253,3134.3,3133.4,1.08742253]
[1768283781184,1.08742253,3134.5,3133.4,1.08742253]
[1768283781389,1.08742253,3134.5,3133.6,1.08742253]
[1768283783092,1.08742253,3134.7,3133.8,1.08742253]
[1768283783293,1.08742253,3134.9,3133.8,1.08742253]
[1768283783493,0.88665625,3134.8,3133.8,1.08742253]
[1768283783683,0.88665625,3134.7,3133.8,1.08742253]
[1768283783884,1.08742253,3134.8,3133.8,1.08742253]
[1768283784179,0.88665604,3134.7,3133.8,1.08742253]
[1768283784381,1.08742253,3134.8,3133.8,1.08742253]
[1768283784582,0.88789539,3134.7,3133.8,1.08742253]
[1768283784778,1.08742253,3134.8,3133.8,1.08742253]
[1768283784991,0.88789542,3134.7,3133.8,1.08742253]
[1768283785197,1.08742253,3134.8,3133.9,1.08742253]
[1768283785388,0.88783757,3134.7,3133.9,1.08742253]
[1768283785690,1.08742253,3134.8,3133.9,1.08742253]
[1768283785893,0.88783653,3134.7,3133.9,1.08742253]
[1768283786186,1.08742253,3134.8,3133.9,1.08742253]
[1768283786493,0.88777391,3134.7,3133.9,1.08742253]
[1768283786692,1.08742253,3134.8,3133.9,1.08742253]
[1768283786893,0.88777252,3134.7,3133.9,1.08742253]
[1768283787091,0.88777252,3134.7,3132.8,7.32590943]
[1768283787092,3.4754768,3133.6,3131.9,1.07966391]
[1768283787289,1.30083873,3133.5,3131.9,1.07966391]
[1768283787484,2.27484831,3133.4,3132.3,3.55013929]
[1768283787686,0.88984831,3133.3,3132.5,1.08742253]
[1768283787891,0.88984831,3133.2,3131.9,1.07966391]
[1768283788192,0.00354199,3133.2,3131.9,1.08276558]
[1768283788787,1.08742253,3133.1,3132.1,1.08742253]
[1768283789193,0.00354199,3133.2,3132.1,1.08742253]
[1768283789389,0.00354199,3133.2,3132.3,1.08742253]
[1768283790488,0.00354199,3133.2,3132.0,3.55013929]
[1768283790693,0.00354199,3133.2,3132.3,1.08742253]
[1768283790891,0.00478118,3133.1,3132.3,1.08742253]
[1768283792294,0.00478118,3133.1,3132.1,1.08742253]
[1768283792494,1.09220371,3133.1,3132.1,1.08742253]
[1768283792797,1.09220371,3133.1,3131.9,4.63290487]
[1768283792997,1.09220371,3133.1,3132.2,1.08742253]
[1768283793197,0.00478118,3133.1,3132.2,1.08742253]
[1768283793396,0.00478118,3133.1,3131.9,4.63290487]
[1768283793795,0.00478118,3133.1,3132.2,1.08742253]
[1768283794195,0.00478118,3133.1,3132.0,3.55013929]
[1768283794396,0.00478118,3133.1,3132.3,1.08742253]
[1768283794790,0.00478118,3133.1,3132.5,1.08742253]
[1768283797097,1.08742253,3133.0,3132.1,3.30809576]
[1768283797299,0.00478118,3133.1,3132.2,1.08742253]
[1768283798400,0.00478118,3133.1,3132.1,3.30809576]
[1768283798401,0.00478118,3133.1,3132.4,1.08742253]
[1768283800402,0.00478118,3133.1,3132.6,1.08742253]
[1768283800698,0.00478118,3133.1,3132.4,1.08742253]
[1768283801294,0.00478118,3133.1,3132.1,3.30809576]
[1768283807402,1.08880793,3132.6,3131.9,1.08276558]
[1768283807994,1.08880793,3132.5,3131.1,3.30809576]
[1768283808991,1.08880793,3132.5,3131.1,3.31064599]
[1768283809197,0.00354199,3133.2,3131.8,1.08880793]
[1768283809400,3.57534178,3133.8,3132.4,1.08880793]
[1768283809603,0.92790481,3133.7,3132.0,4.39690369]
[1768283809904,1.08880793,3133.4,3132.0,4.39690369]
[1768283810101,3.57534178,3133.8,3132.1,3.30809576]
[1768283810310,1.08880793,3133.5,3132.1,3.30809576]
[1768283812406,1.08880793,3133.5,3132.2,3.30809576]
[1768283812602,4.66696587,3133.8,3132.2,3.30809576]
[1768283812807,0.92908239,3133.7,3132.2,3.30809576]
[1768283813107,0.92908239,3133.6,3132.2,3.30809576]
[1768283813305,0.92908239,3133.5,3132.2,3.30809576]
[1768283813508,0.92908239,3133.4,3132.2,3.30809576]
[1768283813709,1.08880793,3133.4,3132.2,3.30809576]
[1768283814006,0.92961079,3133.3,3132.2,3.30809576]
[1768283814207,1.08880793,3133.2,3132.2,3.30809576]
[1768283814505,1.08880793,3132.9,3131.8,3.30809576]
[1768283815907,1.08880793,3132.9,3131.5,3.31288464]
[1768283816114,0.93981736,3132.8,3131.5,3.31288464]
[1768283816408,1.08880793,3132.9,3131.5,3.31288464]
[1768283816707,0.93983363,3132.8,3131.5,3.31288464]
[1768283817001,1.08880793,3132.6,3131.5,3.31288464]
[1768283817205,1.08880793,3132.6,3131.5,0.00478888]
[1768283817409,0.9412394,3132.5,3131.5,0.00478888]
[1768283817608,0.9412394,3132.4,3131.5,0.00478888]
[1768283817799,1.08880793,3132.6,3131.5,0.00478888]
[1768283818001,0.94124066,3132.5,3131.5,0.00478888]
[1768283818201,1.08880793,3132.6,3131.5,0.00478888]
[1768283818402,0.94108652,3132.5,3131.9,1.08880793]
[1768283818604,2.47680793,3133.2,3131.9,1.08880793]
[1768283818804,1.34899912,3133.1,3131.9,1.08880793]
[1768283819003,2.47680793,3133.2,3131.9,1.08880793]
[1768283819004,1.34899912,3133.0,3131.9,1.08880793]
[1768283819303,1.34899829,3132.9,3131.8,3.30809576]
[1768283819505,0.93810829,3132.8,3131.8,3.30809576]
[1768283819707,0.93810829,3132.7,3131.8,3.30809576]
[1768283819904,0.93810829,3132.6,3131.8,3.30809576]
[1768283820104,0.93810829,3132.5,3131.8,3.30809576]
[1768283820309,1.08880793,3132.9,3131.8,3.30809576]
[1768283820508,0.93054662,3132.8,3131.8,3.30809576]
[1768283820705,0.93054662,3132.7,3131.8,3.30809576]
[1768283820912,0.93054662,3132.6,3131.8,3.30809576]
[1768283821114,0.93054662,3132.5,3131.5,0.00478888]
[1768283821419,1.08880793,3132.9,3131.5,0.00478888]
[1768283821711,0.93047266,3132.8,3131.5,0.00478888]
[1768283821912,0.93047266,3132.7,3131.5,0.00478888]
[1768283822105,0.93047266,3132.6,3131.5,0.00478888]
[1768283822307,0.93047266,3132.5,3131.5,0.00478888]
[1768283822513,1.08880793,3132.9,3131.5,0.00478888]
[1768283822711,0.93040551,3132.8,3131.5,0.00478888]
[1768283822911,0.93040551,3132.7,3131.5,0.00478888]
[1768283823111,0.93040551,3132.6,3131.5,0.00478888]
[1768283823312,0.93040551,3132.5,3131.5,0.00478888]
[1768283823514,1.08880793,3132.9,3131.5,0.00478888]
[1768283823815,0.930347,3132.8,3131.5,0.00478888]
[1768283824013,0.930347,3132.7,3131.5,0.00478888]
[1768283824214,0.930347,3132.6,3131.5,0.00478888]
[1768283824409,0.930347,3132.5,3131.5,0.00478888]
[1768283824608,1.08880793,3132.9,3131.5,0.00478888]
[1768283824810,0.93029878,3132.8,3131.6,4.68335775]
[1768283825114,0.93029878,3132.7,3131.6,4.68335775]
[1768283825318,0.93029878,3132.6,3131.6,4.68335775]
[1768283825515,1.08880793,3132.9,3131.6,4.68335775]
[1768283825715,0.9302671,3132.8,3131.6,4.68335775]
[1768283825918,0.9302671,3132.7,3131.6,4.68335775]
[1768283826108,0.9302671,3132.6,3131.6,4.68335775]
[1768283826310,1.08880793,3132.9,3131.6,4.68335775]
[1768283826518,0.93024972,3132.8,3131.6,4.68335775]
[1768283826816,0.93024972,3132.7,3131.6,4.68335775]
[1768283827115,0.93024972,3132.6,3131.6,4.68335775]
[1768283827314,1.08880793,3132.9,3131.6,4.68335775]
[1768283827512,0.93024256,3132.8,3131.6,3.59454982]
[1768283827717,0.93024256,3132.7,3131.6,3.59454982]
[1768283827915,0.93024256,3132.6,3131.6,3.59454982]
[1768283828117,0.93024256,3132.5,3131.6,3.59454982]
[1768283828314,1.08880793,3132.9,3131.6,3.59454982]
[1768283828516,0.93025913,3132.8,3131.6,3.59454982]
[1768283828717,0.93025913,3132.7,3131.6,3.59454982]
[1768283828918,0.93025913,3132.6,3131.6,3.59454982]
[1768283829115,0.93025913,3132.5,3131.6,3.59454982]
[1768283829418,1.08880793,3132.9,3131.5,1.09359681]
[1768283829619,0.9302588,3132.8,3131.5,1.09359681]
[1768283829815,0.9302588,3132.7,3131.5,1.09359681]
[1768283830015,0.9302588,3132.6,3131.5,1.09359681]
[1768283830211,0.9302588,3132.5,3131.5,1.09359681]
[1768283830412,1.08880793,3132.9,3131.5,1.09359681]
[1768283830612,0.93027051,3132.8,3131.5,1.09359681]
[1768283830920,0.93027051,3132.7,3131.5,4.68814663]
[1768283831119,0.93027051,3132.6,3131.5,4.68814663]
[1768283831321,0.93027051,3132.5,3131.5,4.68814663]
[1768283831518,1.08880793,3132.9,3131.5,3.5993387]
[1768283831721,0.92732659,3132.8,3131.6,1.08880793]
[1768283831908,0.92732659,3132.7,3131.6,1.08880793]
[1768283832114,0.92732659,3132.6,3131.6,1.08880793]
[1768283832420,0.92732659,3132.5,3131.5,3.5993387]
[1768283832720,2.47680793,3133.0,3131.6,1.08880793]
[1768283832918,1.33804292,3132.9,3131.6,1.08880793]
[1768283833120,0.92735744,3132.8,3131.6,1.08880793]
[1768283833320,0.92735744,3132.7,3131.6,1.08880793]
[1768283833617,0.92735744,3132.6,3131.6,1.08880793]
[1768283833820,0.92735744,3132.5,3131.6,1.08880793]
[1768283834120,2.47680793,3133.0,3131.6,1.08880793]
[1768283834309,1.33813485,3132.9,3131.6,1.08880793]
[1768283834623,0.92743409,3132.8,3131.6,4.49406035]
[1768283837324,0.92743409,3132.8,3131.6,3.40525242]
[1768283837526,0.92743409,3132.8,3131.6,4.49406035]
[1768283842941,0.92743409,3132.8,3131.7,3.40525242]
[1768283844737,0.92743409,3132.8,3131.5,1.09359681]
[1768283844940,1.08880793,3132.7,3131.5,1.09359681]
[1768283845143,0.92743409,3132.6,3131.5,1.09359681]
[1768283845337,0.92743409,3132.5,3131.5,1.09359681]
[1768283845539,1.08880793,3132.7,3131.5,1.09359681]
[1768283845744,0.92578993,3132.6,3131.5,1.09359681]
[1768283845945,0.92578993,3132.5,3131.5,1.09359681]
[1768283846138,0.92597288,3132.4,3131.5,4.49884923]
[1768283846441,3.37388717,3132.9,3131.5,4.49884923]
[1768283846640,1.33755924,3132.8,3131.5,4.49884923]
[1768283846844,0.92596817,3132.7,3131.5,4.49884923]
[1768283847046,0.92596817,3132.6,3131.5,4.49884923]
[1768283847344,0.92596817,3132.5,3131.5,4.49884923]
[1768283847544,0.92596817,3132.4,3131.5,4.49884923]
[1768283847840,3.37388717,3132.9,3131.5,4.49884923]
[1768283848045,1.33758159,3132.8,3131.5,4.49884923]
[1768283848346,0.92599082,3132.7,3131.5,4.49884923]
[1768283848540,0.92599082,3132.6,3131.5,4.49884923]
[1768283848742,0.92599082,3132.5,3131.5,4.49884923]
[1768283848944,0.92599082,3132.4,3131.5,4.49884923]
[1768283849245,3.37388717,3132.9,3131.5,4.49884923]
[1768283849547,1.3375838,3132.8,3131.5,4.49884923]
[1768283849748,0.92599161,3132.7,3131.5,4.49884923]
[1768283849940,0.92599161,3132.6,3131.5,4.49884923]
[1768283850139,0.92599161,3132.5,3131.5,4.49884923]
[1768283850442,0.92599161,3132.4,3131.5,4.49884923]
[1768283850641,3.37388717,3132.9,3131.5,4.49884923]
[1768283850844,1.33757744,3132.8,3131.5,4.49884923]
[1768283851139,0.92598853,3132.7,3131.5,4.49884923]
[1768283851338,0.92598853,3132.6,3131.5,4.49884923]
[1768283851546,0.92598853,3132.5,3131.5,4.49884923]
[1768283851747,0.92598853,3132.4,3131.5,4.49884923]
[1768283851949,3.37388717,3132.9,3131.5,4.49884923]
[1768283852248,1.33757103,3132.8,3131.5,4.49884923]
[1768283852540,1.33757103,3132.8,3131.5,0.00478888]
[1768283852541,1.08880793,3132.5,3131.5,0.00478888]
[1768283852747,0.92598409,3132.4,3131.5,0.00478888]
[1768283854048,0.92598409,3132.3,3131.5,0.00478888]
[1768283854247,0.92598409,3132.2,3131.5,0.00478888]
[1768283854444,1.08880793,3132.7,3131.5,0.00478888]
[1768283854749,1.33730914,3132.6,3131.5,0.00478888]
[1768283854937,0.92580583,3132.5,3131.5,0.00478888]
[1768283855137,0.92580583,3132.4,3131.5,0.00478888]
[1768283855334,0.92580583,3132.3,3131.5,0.00478888]
[1768283855542,1.08880793,3132.7,3131.5,0.00478888]
[1768283855743,1.33720267,3132.6,3131.5,0.00478888]
[1768283855942,0.92573212,3132.5,3131.5,0.00478888]
[1768283856150,0.92573212,3132.4,3131.5,0.00478888]
[1768283856349,0.92573212,3132.3,3131.5,0.00478888]
[1768283856543,0.92573212,3132.2,3131.5,0.00478888]
[1768283856741,1.08880793,3132.7,3131.5,0.00478888]
[1768283856941,1.33710248,3132.6,3131.5,0.00478888]
[1768283857147,0.92566282,3132.5,3131.5,0.00478888]
[1768283857347,0.92566282,3132.4,3131.5,0.00478888]
[1768283857548,0.92566282,3132.3,3131.5,0.00478888]
[1768283857748,4.49000155,3132.7,3131.5,0.00478888]
[1768283858050,4.49000155,3132.5,3131.5,0.00478888]
[1768283858356,0.92560589,3132.4,3131.5,0.00478888]
[1768283861348,0.92560589,3132.4,3131.1,1.09135816]
[1768283861745,0.92560589,3132.4,3131.1,0.00255023]
[1768283861949,0.92560589,3132.4,3131.1,1.09135816]
[1768283862451,0.92560589,3132.4,3131.1,0.00255023]
[1768283862751,0.92560589,3132.4,3131.5,4.50457301]
[1768283863050,0.92560589,3132.3,3131.5,4.50457301]
[1768283863247,1.387,3132.6,3131.5,3.41576508]
[1768283863442,0.92520668,3132.5,3131.7,1.08916059]
[1768283863644,0.92520668,3132.4,3131.7,1.08916059]
[1768283863842,0.92520668,3132.3,3131.7,1.08916059]
[1768283864141,1.387,3132.6,3131.7,1.08916059]
[1768283864338,0.92517124,3132.5,3131.7,1.08916059]
[1768283864540,0.92517124,3132.4,3131.7,1.08916059]
[1768283864747,0.92517124,3132.3,3131.7,1.08916059]
[1768283864950,1.387,3132.6,3131.7,1.08916059]
[1768283865147,0.92516258,3132.5,3131.7,1.08916059]
[1768283865353,0.92516258,3132.4,3131.7,1.08916059]
[1768283865555,0.92516258,3132.3,3131.5,3.41576508]
[1768283865750,2.47616059,3132.6,3131.7,1.08916059]
[1768283865950,0.925159,3132.5,3131.7,1.08916059]
[1768283866257,0.925159,3132.4,3131.8,1.08916059]
[1768283866451,0.925159,3132.3,3131.8,1.08916059]
[1768283866646,1.08916059,3132.6,3131.8,1.08916059]
[1768283866946,0.92514086,3132.5,3131.8,1.08916059]
[1768283867149,0.92514086,3132.4,3131.8,1.08916059]
[1768283867348,0.92514086,3132.3,3131.8,1.08916059]
[1768283867554,1.08916059,3132.2,3131.1,3.41831531]
[1768283867754,1.08916059,3132.2,3131.4,1.08916059]
[1768283868358,1.08916059,3132.4,3131.4,1.08916059]
[1768283868560,0.92511812,3132.3,3131.4,1.08916059]
[1768283868760,1.08916059,3132.4,3131.4,1.08916059]
[1768283869059,0.00478888,3132.2,3131.1,3.41831531]
[1768283869261,0.00478888,3132.2,3131.5,1.08916059]
[1768283869760,0.00478888,3132.2,3131.1,3.41831531]
[1768283869962,0.00478888,3132.2,3131.5,1.08916059]
[1768283870457,0.00478888,3132.2,3131.7,1.08916059]
[1768283873059,0.00478888,3132.2,3131.5,1.08916059]
[1768283873258,0.00478888,3132.2,3131.7,1.08916059]
[1768283875358,0.00478888,3132.2,3131.9,1.08916059]
[1768283876062,0.00478888,3132.2,3131.7,1.08916059]
[1768283876868,0.00478888,3132.2,3131.4,3.41576508]
[1768283877057,0.00478888,3132.2,3131.7,1.08916059]
[1768283879067,0.00478888,3132.2,3131.5,1.08916059]
[1768283880561,1.08916059,3132.0,3131.1,1.09171082]
[1768283881373,1.08916059,3132.0,3131.1,0.00255023]
[1768283881775,1.08916059,3132.0,3131.2,1.08916059]
[1768283882073,1.08916059,3132.1,3131.2,1.08916059]
[1768283882275,1.08916059,3131.9,3131.1,1.09171082]
[1768283882476,1.08916059,3131.9,3131.1,0.00255023]
[1768283882678,1.08916059,3131.9,3131.1,1.09171082]
[1768283883976,1.08916059,3132.0,3131.1,1.09171082]
[1768283884174,0.92691324,3131.9,3131.1,0.00255023]
[1768283884372,1.09394947,3132.2,3131.3,1.08916059]
[1768283884578,0.92680708,3132.1,3131.3,1.08916059]
[1768283884776,0.92680708,3132.0,3131.3,1.08916059]
[1768283884972,0.92680708,3131.9,3131.3,1.08916059]
[1768283885172,1.09394947,3132.2,3131.3,1.08916059]
[1768283885375,0.92680709,3132.1,3131.3,1.08916059]
[1768283885575,0.92680709,3132.0,3131.3,1.08916059]
[1768283885779,0.92680709,3131.9,3131.2,1.08916059]
[1768283886072,1.08916059,3132.0,3131.1,1.09171082]
[1768283886278,0.92672634,3131.9,3131.1,1.09171082]
[1768283886581,2.01585081,3131.8,3131.1,0.00255023]
[1768283886770,1.08916059,3131.8,3131.1,0.00255023]
[1768283888668,2.47716059,3132.1,3131.1,1.09171082]
[1768283888881,0.92637777,3132.0,3131.1,1.09171082]
[1768283889092,0.92637777,3131.9,3131.1,1.09171082]
[1768283889377,0.92637777,3131.8,3131.1,1.09171082]
[1768283889583,1.08916059,3131.9,3131.1,1.09171082]
[1768283889777,0.9262632,3131.8,3131.1,1.09171082]
[1768283889977,1.08916059,3131.9,3131.1,1.09171082]
[1768283890178,0.92625968,3131.8,3131.1,1.09171082]
[1768283890378,1.08916059,3131.9,3131.1,1.09171082]
[1768283890881,1.08916059,3131.9,3131.1,0.00255023]
[1768283891077,0.92618007,3131.8,3131.1,0.00255023]
[1768283891379,1.08916059,3131.9,3131.1,0.00255023]
[1768283891582,0.92610696,3131.8,3131.1,0.00255023]
[1768283891776,1.08916059,3131.9,3131.1,0.00255023]
[1768283891979,0.92610622,3131.8,3131.1,0.00255023]
[1768283892179,0.00478888,3132.2,3131.4,1.08916059]
[1768283892381,0.92604219,3132.1,3131.4,1.08916059]
[1768283892582,0.92604219,3132.0,3131.4,1.08916059]
[1768283892768,1.09394947,3132.2,3131.4,1.08916059]
[1768283892974,0.92603447,3132.1,3131.1,3.58576197]
[1768283893177,0.92603447,3132.0,3131.3,1.08916059]
[1768283893476,1.09394947,3132.2,3131.3,1.08916059]
[1768283893784,0.92602875,3132.1,3131.3,1.08916059]
[1768283893981,0.92602875,3132.0,3131.3,1.08916059]
[1768283894282,1.09394947,3132.2,3131.3,1.08916059]
[1768283894471,0.92604732,3132.1,3131.1,3.58576197]
[1768283894676,0.92604732,3132.0,3131.2,1.08916059]
[1768283894882,1.09394947,3132.2,3131.2,1.08916059]
[1768283895084,0.92606047,3132.1,3131.2,1.08916059]
[1768283895276,0.92606047,3132.0,3131.2,1.08916059]
[1768283895471,1.09394947,3132.2,3131.2,1.08916059]
[1768283895675,2.01523384,3132.1,3131.2,1.08916059]
[1768283895876,0.92607325,3132.0,3131.2,1.08916059]
[1768283896178,1.08916059,3132.1,3131.2,1.08916059]
[1768283896377,0.92607546,3132.0,3131.2,1.08916059]
[1768283896589,1.08916059,3132.1,3131.2,1.08916059]
[1768283896778,0.9260779,3132.0,3131.2,1.08916059]
[1768283896978,1.08916059,3132.1,3131.1,3.58576197]
[1768283897181,0.92607791,3132.0,3131.2,1.08916059]
[1768283897378,1.08916059,3132.1,3131.2,1.08916059]
[1768283897683,0.92609727,3132.0,3131.2,1.08916059]
[1768283897886,1.08916059,3132.1,3131.2,1.08916059]
[1768283898186,0.92609712,3132.0,3131.2,1.08916059]
[1768283898384,1.08916059,3132.1,3131.2,1.08916059]
[1768283898585,0.9261144,3132.0,3131.2,1.08916059]
[1768283898786,1.08916059,3132.1,3131.2,1.08916059]
[1768283898985,0.9261144,3132.0,3131.2,1.08916059]
[1768283899285,1.08916059,3132.1,3131.2,1.08916059]
[1768283899487,0.92613776,3132.0,3131.2,1.08916059]
[1768283899687,1.08916059,3132.1,3131.2,1.08916059]
[1768283899887,0.92613776,3132.0,3131.2,1.08916059]
[1768283900182,1.09394947,3132.2,3131.2,1.08916059]
[1768283900381,0.92615385,3132.1,3131.2,1.08916059]
[1768283900581,0.92615385,3132.0,3131.2,1.08916059]
[1768283900886,1.09394947,3132.2,3131.2,1.08916059]
[1768283901086,0.92616564,3132.1,3131.2,1.08916059]
[1768283901289,0.92616564,3132.0,3131.2,1.08916059]
[1768283901489,1.09394947,3132.2,3131.2,1.08916059]
[1768283901786,0.92620133,3132.1,3131.2,1.08916059]
[1768283901988,0.92620133,3132.0,3131.2,1.08916059]
[1768283902290,1.09394947,3132.2,3131.2,1.08916059]
[1768283902490,0.92624352,3132.1,3131.2,1.08916059]
[1768283902685,0.92624352,3132.0,3131.2,1.08916059]
[1768283902891,1.09394947,3132.2,3131.2,1.08916059]
[1768283903092,0.92624352,3132.1,3131.2,1.08916059]
[1768283903286,0.92624352,3132.0,3131.2,1.08916059]
[1768283903486,1.09394947,3132.2,3131.2,1.08916059]
[1768283903687,0.92624111,3132.1,3131.2,1.08916059]
[1768283903888,0.92624111,3132.0,3131.2,1.08916059]
[1768283904100,1.09394947,3132.2,3131.3,1.08916059]
[1768283904294,0.92622935,3132.1,3131.3,1.08916059]
[1768283904494,0.92622935,3132.0,3131.3,1.08916059]
[1768283904696,0.00478888,3132.2,3131.5,1.08916059]
[1768283904895,0.92643957,3132.1,3131.5,1.08916059]
[1768283905091,0.92643957,3132.0,3131.5,1.08916059]
[1768283905292,0.00478888,3132.2,3131.5,1.08916059]
[1768283905492,0.92639446,3132.1,3131.5,1.08916059]
[1768283905796,0.92639446,3132.0,3131.5,1.08916059]
[1768283905997,0.00478888,3132.2,3131.5,1.08916059]
[1768283906185,0.92636791,3132.1,3131.5,1.08916059]
[1768283906388,0.92636791,3132.0,3131.5,1.08916059]
[1768283906592,0.92636791,3131.9,3131.5,1.08916059]
[1768283906789,0.00478888,3132.2,3131.5,1.08916059]
[1768283906991,0.9263884,3132.1,3131.5,1.08916059]
[1768283907190,0.9263884,3132.0,3131.5,1.08916059]
[1768283907392,0.9263884,3131.9,3131.5,1.08916059]
[1768283907587,0.00478888,3132.2,3131.5,1.08916059]
[1768283907792,0.92639747,3132.1,3131.5,1.08916059]
[1768283908092,0.92639747,3132.0,3131.5,1.08916059]
[1768283908291,0.92639747,3131.9,3131.5,1.08916059]
[1768283908491,0.00478888,3132.2,3131.5,1.08916059]
[1768283908691,0.92638587,3132.1,3131.5,1.08916059]
[1768283908894,0.92638587,3132.0,3131.5,1.08916059]
[1768283909197,0.92638587,3131.9,3131.5,1.08916059]
[1768283909399,0.00478888,3132.2,3131.5,1.08916059]
[1768283909598,0.92618026,3132.1,3131.5,1.08916059]
[1768283909800,0.92618026,3132.0,3131.1,3.58576197]
[1768283909995,0.92618026,3131.9,3131.5,1.08916059]
[1768283910194,0.00478888,3132.2,3131.5,1.08916059]
[1768283910393,0.9261896,3132.1,3131.5,1.08916059]
[1768283910598,0.9261896,3132.0,3131.5,1.08916059]
[1768283910796,0.9261896,3131.9,3131.5,1.08916059]
[1768283910999,1.09394947,3132.2,3131.4,1.08916059]
[1768283911300,0.9261854,3132.1,3131.4,1.08916059]
[1768283911496,0.9261854,3132.0,3131.4,1.08916059]
[1768283911697,0.9261854,3131.9,3131.4,1.08916059]
[1768283911892,1.09394947,3132.2,3131.1,0.00255023]
[1768283912096,1.08916059,3132.0,3131.1,0.00255023]
[1768283912302,0.92627549,3131.9,3131.2,1.08916059]
[1768283912501,0.92627549,3131.8,3131.2,1.08916059]
[1768283912702,1.08916059,3132.1,3131.2,1.08916059]
[1768283913004,0.92623408,3132.0,3131.2,1.08916059]
[1768283913300,0.92623408,3131.9,3131.2,1.08916059]
[1768283913498,0.92623408,3131.8,3131.2,1.08916059]
[1768283913701,1.08916059,3132.1,3131.2,1.08916059]
[1768283913902,0.92623897,3132.0,3131.2,1.08916059]
[1768283914102,0.92623897,3131.9,3131.2,1.08916059]
[1768283914304,0.92623897,3131.8,3131.2,1.08916059]
[1768283914504,1.08916059,3132.1,3131.1,0.00255023]
[1768283914804,0.9262294,3132.0,3131.1,0.00255023]
[1768283915006,0.9262294,3131.9,3131.2,1.08916059]
[1768283915202,0.9262294,3131.8,3131.2,1.08916059]
[1768283915392,1.08916059,3132.1,3131.2,1.08916059]
[1768283915596,0.92621962,3132.0,3131.2,1.08916059]
[1768283915798,0.92621962,3131.9,3131.2,1.08916059]
[1768283916004,0.92621962,3131.8,3131.2,1.08916059]
[1768283916200,1.08916059,3132.1,3131.2,1.08916059]
[1768283916393,0.92621208,3132.0,3131.2,1.08916059]
[1768283916597,0.92621208,3131.9,3131.2,1.08916059]
[1768283916901,0.92621208,3131.8,3131.2,1.08916059]
[1768283917102,1.08916059,3132.1,3131.2,1.08916059]
[1768283917304,0.92621211,3132.0,3131.2,1.08916059]
[1768283917503,0.92621211,3131.9,3131.2,1.08916059]
[1768283917805,0.92621211,3131.8,3131.1,1.09171082]
[1768283918303,1.08916059,3132.1,3131.1,1.09171082]
[1768283918506,0.92623064,3132.0,3131.1,1.09171082]
[1768283918702,0.92623064,3131.9,3131.1,1.09171082]
[1768283918902,0.92623064,3131.8,3131.2,1.08916059]
[1768283919113,0.00478888,3132.2,3131.7,0.88870591]
[1768283919315,0.92621047,3132.1,3131.5,1.08916059]
[1768283919605,0.92621047,3132.0,3131.5,1.08916059]
[1768283919805,0.92621047,3131.9,3131.5,1.08916059]
[1768283919994,0.00478888,3132.2,3131.5,1.08916059]
[1768283920197,0.92624269,3132.1,3131.1,0.00255023]
[1768283920396,0.92624269,3132.0,3131.5,1.08916059]
[1768283920600,0.92624269,3131.9,3131.5,1.08916059]
[1768283920909,0.00478888,3132.2,3131.5,1.08916059]
[1768283921104,0.92567814,3132.1,3131.5,1.08916059]
[1768283921402,0.92567814,3132.0,3131.5,1.08916059]
[1768283921605,0.92567814,3131.9,3131.5,1.08916059]
[1768283921902,0.00478888,3132.2,3131.5,1.08916059]
[1768283922104,0.92562588,3132.1,3131.4,1.08916059]
[1768283922307,0.92562588,3132.0,3131.4,1.08916059]
[1768283922507,0.92562588,3131.9,3131.4,1.08916059]
[1768283922804,1.09394947,3132.2,3131.4,1.08916059]
[1768283923002,0.92560375,3132.1,3131.4,1.08916059]
[1768283923200,0.92560375,3132.0,3131.4,1.08916059]
[1768283923497,0.92560375,3131.9,3131.1,1.0919919]
[1768283923700,0.00478888,3132.2,3131.1,1.0919919]
[1768283923909,0.92557389,3132.1,3131.1,1.0919919]
[1768283924110,0.92557389,3132.0,3131.1,1.0919919]
[1768283924404,0.92557389,3131.9,3131.1,1.0919919]
[1768283924609,0.00478888,3132.2,3131.1,1.0919919]
[1768283924810,0.92559642,3132.1,3131.1,1.0919919]
[1768283925109,0.92559642,3132.0,3131.1,1.0919919]
[1768283925410,0.92559642,3131.9,3131.1,1.0919919]
[1768283925611,0.00478888,3132.2,3131.1,1.0919919]
[1768283925810,0.92560766,3132.1,3131.1,1.0919919]
[1768283926108,0.92560766,3132.0,3131.1,1.0919919]
[1768283926302,0.92560766,3131.9,3131.1,1.0919919]
[1768283926503,0.92560766,3131.8,3131.1,1.0919919]
[1768283926702,0.00478888,3132.2,3131.1,1.0919919]
[1768283926906,1.33666333,3132.1,3131.1,0.00255023]
[1768283927211,0.9257677,3132.0,3131.1,0.00255023]
[1768283927411,0.9257677,3131.9,3131.1,0.00255023]
[1768283927600,0.9257677,3131.8,3131.1,0.00255023]
[1768283927799,4.73355322,3132.2,3131.1,0.00255023]
[1768283928006,1.33660025,3132.1,3131.1,0.00255023]
[1768283928207,0.92571869,3132.0,3131.1,0.00255023]
[1768283928407,0.92571869,3131.9,3131.1,0.00255023]
[1768283928606,0.92571869,3131.8,3131.1,0.00255023]
[1768283928807,4.73355322,3132.2,3131.1,0.00255023]
[1768283929007,1.33691496,3132.1,3131.1,0.00255023]
[1768283929208,0.92593815,3132.0,3131.1,0.00255023]
[1768283929503,0.92593815,3131.9,3131.1,0.00255023]
[1768283929709,4.73355322,3132.2,3131.1,0.00255023]
[1768283929710,0.92593815,3131.8,3131.1,0.00255023]
[1768283929910,4.73355322,3132.2,3131.1,0.00255023]
[1768283930211,1.33697465,3132.1,3131.1,0.00255023]
[1768283930410,0.92598047,3132.0,3131.1,0.00255023]
[1768283930613,0.92598047,3131.9,3131.1,0.00255023]
[1768283930809,0.92598047,3131.8,3131.1,0.00255023]
[1768283931009,4.73355322,3132.2,3131.1,0.00255023]
[1768283931010,3.63932267,3132.1,3131.1,0.00255023]
[1768283931210,4.56523276,3132.0,3131.1,0.00255023]
[1768283931408,0.92591009,3131.9,3131.1,0.00255023]
[1768283931610,0.92591009,3131.8,3131.1,0.00255023]
[1768283931817,3.63932267,3132.0,3131.1,0.00255023]
[1768283932112,0.92590186,3131.9,3131.1,0.00255023]
[1768283932408,0.92590186,3131.8,3131.1,0.00255023]
[1768283932614,3.63932267,3132.0,3131.1,0.00255023]
[1768283932817,0.92587326,3131.9,3131.1,0.00255023]
[1768283933112,0.92587326,3131.8,3131.1,0.00255023]
[1768283933317,3.63932267,3132.0,3131.1,0.00255023]